Cogmind - Beta 16.1 @@@ ROGUE MODE // 2026.04.06 @ 14:03:19 Player: gamerman Result: Destroyed by AP-EEE(R) with Subdweller Beam Cannon Performance ------------- Evolutions (0) 0 Regions Visited (3) 600 Robots Destroyed (19) 95 Value Destroyed (602) 602 Prototype IDs (0) 0 Alien Tech Used (0) 0 Bonus (-43) -43 TOTAL SCORE: 1254 Bonus ------- Friendly Fire -43 Cogmind --------- Core Integrity 0/250 Matter 205/300 Energy 100/100 System Corruption 0% Temperature Cool (9) Movement Rolling (110) Location -10/Subcaves Parts ------- > --- POWER (1) -------- (None) > --- PROPULSION (2) --- Subdweller Monowheel Subdweller Monowheel > --- UTILITY (2) ------ Small Storage Unit Makeshift Targeting Computer > --- WEAPON (2) ------- (None) > --- INVENTORY (8) ---- Subdweller Power Source Subdweller Power Source Light Nuclear Core Makeshift Power Source Improved Heat Sink Riot Gun Subdweller Laser Barrage Gun Peak State ------------ > --- POWER ------------ Subdweller Power Source > --- PROPULSION ------- Subdweller Monowheel Subdweller Monowheel > --- UTILITY ---------- Improved Heat Sink Small Storage Unit > --- WEAPON ----------- Subdweller Machine Gun Battle Cannon > --- INVENTORY -------- Ion Engine Subdweller Power Source Subdweller Power Source Light Nuclear Core Makeshift Power Source Improved Heat Sink Subdweller Laser Barrage Gun [Rating: 16] Favorites ----------- Power Ion Engine Engine Ion Engine Propulsion Light Treads Treads Light Treads Wheel Subdweller Monowheel Utility Small Storage Unit Device Improved Heat Sink Storage Small Storage Unit Processor Makeshift Targeting Computer Weapon Medium Laser Energy Gun Medium Laser Ballistic Gun Subdweller Machine Gun Ballistic Cannon Battle Cannon Launcher Grenade Launcher Special Weapon Mining Laser Build | -11 -10 -10 -10 ------- Run | Yrd Mat Min Sub Slots Evolved . | . . . . Power . | . . . . Propulsion . | . . . . Utility . | . . . . Weapon . | . . . . Parts Attached 17 | 6 . 1 10 Power 2 | 1 . . 1 Engine 2 | 1 . . 1 Core . | . . . . Reactor . | . . . . Propulsion 5 | 2 . . 3 Treads 2 | 2 . . . Leg . | . . . . Wheel 3 | . . . 3 Hover . | . . . . Flight . | . . . . Utility 3 | 1 . . 2 Device 1 | . . . 1 Storage 1 | 1 . . . Processor 1 | . . . 1 Hackware . | . . . . Protection . | . . . . Artifact . | . . . . Weapon 7 | 2 . 1 4 Energy Gun 2 | 2 . . . Energy Cannon . | . . . . Ballistic Gun 2 | . . 1 1 Ballistic Cannon 1 | . . . 1 Launcher 1 | . . . 1 Special Weapon 1 | . . . 1 Impact Weapon . | . . . . Slashing Weapon . | . . . . Piercing Weapon . | . . . . Special Melee Weapon . | . . . . Unidentified Prototypes . | . . . . Parts Lost 8 | . . 1 7 Power 1 | . . . 1 Propulsion 2 | . . . 2 Utility . | . . . . Weapon 5 | . . 1 4 Highest Loss Streak 3 | . . 1 3 To Critical Strikes . | . . . . Average Backups 5 | 1 2 5 6 Power 2 | . 1 2 3 Propulsion . | . . . . Utility . | . . 1 1 Weapon 1 | . 1 1 1 Tool/Special . | . . . . Unused Backups 9 | . . . 9 Power 5 | . . . 5 Propulsion . | . . . . Utility 1 | . . . 1 Weapon 3 | . . . 3 Tool/Special . | . . . . Average Slot Usage (%) 89 | . 85 80 93 Engine 14 | . 14 14 14 Treads 16 | . 28 28 9 Wheel 10 | . . . 16 Device 5 | . . . 9 Storage 14 | . 14 14 14 Processor 1 | . . . 2 Energy Gun 11 | . 28 15 5 Ballistic Gun 9 | . . 7 11 Ballistic Cannon 4 | . . . 6 Launcher 1 | . . . 1 Peak Build Rating 16 | 6 6 7 16 Average Rating 9 | 4 6 6 11 On Entrance 4 | . 6 6 7 Avg Prop Armor Cover (%) 13 | . . . 13 Naked Turns . | . . . . Heaviest Build 18 | 14 14 14 18 Greatest Support 40 | 40 40 40 40 Greatest Overweight (x) 4 | 4 . . . Average Overweight (x) . | . . . . Largest Inventory Capacity 8 | 8 8 8 8 Average Capacity 7 | 7 8 8 8 Most Carried 8 | 2 5 6 8 Average Carried 5 | 1 2 5 6 Final Capacity 8 | 8 8 8 8 Final Carried 8 | 2 5 6 8 Class Distribution -------------------- 87% | Mutant 12% | Scavenger-Mutant Dominant Class ---------------- Mutant | -10/Materials Mutant | -10/Mines Mutant | -10/Subcaves Resources | -11 -10 -10 -10 ----------- Run | Yrd Mat Min Sub Matter Collected 523 | 200 60 15 248 Remotely . | . . . . Salvage Created 598 | . 186 214 198 Parts 42 | . 14 12 16 Haulers Intercepted 1 | . 1 . . Recyclers Shooed . | . . . . Parts Field Recycled . | . . . . Retrieved Matter . | . . . . Parts Self-Destructed 3 | . . . 3 Prevented . | . . . . Parts Restored . | . . . . Kills | -11 -10 -10 -10 ------- Run | Yrd Mat Min Sub Combat Hostiles Destroyed 16 | . 3 4 9 Guns 12 | . 3 4 5 Cannons 1 | . . . 1 AOE 3 | . . . 3 Classes Destroyed 6 | . 3 1 2 Tunneler 1 | . . 1 . Hauler 1 | . 1 . . Watcher 1 | . 1 . . Swarmer 2 | . . . 2 Grunt 7 | . 3 4 . Subdweller 7 | . . . 7 Best Kill Streak 3 | . 3 3 2 Combat Bots Only 2 | . 2 2 2 Max Kills in Single Turn 1 | . 1 1 1 Gunslinging . | . . . . Exploded 1 | . . . 1 Melee . | . . . . Uniques/NPCs Destroyed . | . . . . Combat | -11 -10 -10 -10 -------- Run | Yrd Mat Min Sub Hostile Shots Fired 103 | . 12 22 69 Missed 32 | . 3 4 25 Hits 71 | . 9 18 44 Projectile 71 | . 9 18 44 Critical Strikes 2 | . . 2 . Damage Taken 1210 | . 121 257 832 Core 251 | . 12 57 182 Absorbed by Shields . | . . . . Core Remaining (%) 100 | 100 . . . Volleys Fired 82 | . 11 15 56 Largest 2 | . 2 2 2 Hottest 90 | . 90 90 80 Shots Fired 140 | . 22 26 92 Gun 111 | . 22 26 63 Cannon 19 | . . . 19 Launcher 10 | . . . 10 Special . | . . . . Kinetic 63 | . . 5 58 Thermal 50 | . 11 15 24 Explosive 10 | . . . 10 Electromagnetic 17 | . 11 6 . Robot Hit Streak 10 | . 3 10 10 Robot Miss Streak 10 | . 2 3 10 Penetration Max . | . . . . Secondary Targets . | . . . . Shots Hit Robots 67 | . 12 19 36 Core Hits 40 | . 9 10 21 Critical Kills . | . . . . Critical Parts Destroyed . | . . . . Critical Strikes 2 | . . . 2 Burn 1 | . . . 1 Blast 1 | . . . 1 Melee Attacks . | . . . . Impact . | . . . . Slashing . | . . . . Piercing . | . . . . Sneak Attacks . | . . . . Combat Hostiles . | . . . . Follow-up Attacks . | . . . . Damage Inflicted 1440 | . 152 225 1063 Guns 701 | . 152 225 324 Cannons 108 | . . . 108 Explosions 631 | . . . 631 Melee . | . . . . Ramming . | . . . . Kinetic 387 | . . 31 356 Thermal 315 | . 113 126 76 Explosive 631 | . . . 631 Electromagnetic 107 | . 39 68 . Impact . | . . . . Slashing . | . . . . Piercing . | . . . . Highest Corruption . | . . . . Average Corruption . | . . . . Corruption Purged . | . . . . Corruption Blocked . | . . . . Overload Shots . | . . . . Overflow Damage 37 | . . . 37 Projectiles . | . . . . Explosions 37 | . . . 37 Melee . | . . . . Knockbacks 1 | . . . 1 Impact . | . . . . Kinetic 1 | . . . 1 Secondary . | . . . . Self-Inflicted Damage . | . . . . Shots . | . . . . Rammed . | . . . . Targets Rammed . | . . . . Kicked . | . . . . Crushed . | . . . . Highest Temperature 269 | . 228 269 . Average Temperature 92 | . 83 100 . Received Heat Transfer 324 | . 69 183 72 Siege Activations . | . . . . Martial Activations . | . . . . Shielding Activations . | . . . . Robots Disrupted . | . . . . Combat Hostiles . | . . . . Robots Corrupted . | . . . . Combat Hostiles . | . . . . Parts Fried . | . . . . Impact Corruptions . | . . . . Robots Melted . | . . . . Combat Hostiles . | . . . . Parts Melted . | . . . . Heat Transferred 999 | . 333 370 296 Parts Sabotaged . | . . . . Parts Stolen . | . . . . Parts Stripped . | . . . . Power Chain Reactions . | . . . . Alert | -11 -10 -10 -10 ------- Run | Yrd Mat Min Sub Maximum Alert Level . | . . . . Low Security (%) 100 | 100 100 100 . Level 1 . | . . . . Level 2 . | . . . . Level 3 . | . . . . Level 4 . | . . . . Level 5 . | . . . . High Security . | . . . . Max Security . | . . . . Peak Influence 56 | . 40 56 . Initial 11 | . . 11 . Average 15 | . 10 26 . Influence Increases 229 | . 84 105 40 Destroy 0b10 Robot/C 180 | . 60 80 40 Destroy 0b10 Robot/NC 15 | . 10 5 . Destroy Leader 34 | . 14 20 . Influence Decreases 229 | . 54 129 46 Entered New Map 23 | . . 19 4 Time Decay 186 | . 54 100 32 Lost Part 20 | . . 10 10 Squads Dispatched . | . . . . Investigation . | . . . . Extermination . | . . . . Reinforcement . | . . . . Assault . | . . . . Garrison . | . . . . Intercept . | . . . . Searches Triggered . | . . . . Construction Impeded . | . . . . Haulers Reinforced . | . . . . Active Scanning Responses . | . . . . Cargo Convoy Interrupts . | . . . . Stealth | -11 -10 -10 -10 --------- Run | Yrd Mat Min Sub Distress Signals 1 | . 1 . . Communications Jammed . | . . . . Distress Signals . | . . . . Times Spotted 22 | . 5 4 13 Peak Tracking Total 3 | . 3 2 3 Tactical Retreats . | . . . . Traps | -11 -10 -10 -10 ------- Run | Yrd Mat Min Sub Traps Triggered 2 | . . . 2 Indirectly . | . . . . Trap Hack Attempts . | . . . . Triggered . | . . . . Disarmed . | . . . . Reprogrammed . | . . . . Reused . | . . . . Traps Extracted . | . . . . Installed . | . . . . Triggered . | . . . . Machines | -11 -10 -10 -10 ---------- Run | Yrd Mat Min Sub Machines Disabled . | . . . . Max in Single Turn . | . . . . Machines Repaired . | . . . . Machines Dismantled . | . . . . Machines Sabotaged . | . . . . Overloaded Fab Kills . | . . . . Hacking | -11 -10 -10 -10 --------- Run | Yrd Mat Min Sub Machines Accessed . | . . . . Terminals . | . . . . Fabricators . | . . . . Repair Stations . | . . . . Recycling Units . | . . . . Scanalyzers . | . . . . Garrison Access . | . . . . Total Hacks . | . . . . Successful . | . . . . Failed . | . . . . Catastrophic . | . . . . Database Lockouts . | . . . . Manual . | . . . . Terminals . | . . . . Fabricators . | . . . . Repair Stations . | . . . . Recycling Units . | . . . . Scanalyzers . | . . . . Garrison Access . | . . . . Terminal Hacks . | . . . . Fabricator Hacks . | . . . . Repair Station Hacks . | . . . . Recycling Unit Hacks . | . . . . Scanalyzer . | . . . . Garrison Access Hacks . | . . . . Unauthorized Hacks . | . . . . Terminals . | . . . . Fabricators . | . . . . Repair Stations . | . . . . Recycling Units . | . . . . Scanalyzers . | . . . . Garrison Access . | . . . . Data Cores Recovered . | . . . . Used . | . . . . Hacking Detections . | . . . . Full Trace Events . | . . . . Feedback Events . | . . . . Feedback Blocked . | . . . . Robot Schematics Acquired . | . . . . Robots Built . | . . . . Authchips . | . . . . Time . | . . . . Total Robot Build Rating . | . . . . Part Schematics Acquired . | . . . . Parts Built . | . . . . Authchips . | . . . . Time . | . . . . Total Part Build Rating . | . . . . Part Studies Acquired . | . . . . Parts Repaired . | . . . . Time . | . . . . Parts Recycled . | . . . . Recycled Matter . | . . . . Retrieved Matter . | . . . . Retrieved Components . | . . . . Parts Scanalyzed . | . . . . Part Schematics Acquired . | . . . . Parts Damaged . | . . . . Bothacking | -11 -10 -10 -10 ------------ Run | Yrd Mat Min Sub Used RIF Installer . | . . . . Robots Hacked . | . . . . Non-combat . | . . . . Combat . | . . . . Robot Hacks Applied . | . . . . Relay Couplers Released . | . . . . Fabnet Peak Effective % . | . . . . Robots Rewired . | . . . . Allies Hacked . | . . . . Hacks Repelled . | . . . . Allies | -11 -10 -10 -10 -------- Run | Yrd Mat Min Sub Total Allies . | . . . . Largest Group . | . . . . Highest-Rated Group . | . . . . Highest-Rated Ally . | . . . . Total Orders . | . . . . Ally Attacks . | . . . . Total Damage . | . . . . Kills . | . . . . Allies Corrupted . | . . . . Allies Melted . | . . . . Intel | -11 -10 -10 -10 ------- Run | Yrd Mat Min Sub Active Infowar (turns) . | . . . . Robot Analysis Total . | . . . . Derelict Logs Recovered . | . . . . Drone Launches . | . . . . Drone Recoveries . | . . . . Exploration | -11 -10 -10 -10 ------------- Run | Yrd Mat Min Sub Turns Passed 1072 | 90 148 218 616 Spaces Moved 568 | 53 70 93 352 Core 16 | 16 . . . Treads 287 | 37 70 93 87 Legs . | . . . . Wheels 265 | . . . 265 Hover . | . . . . Flight . | . . . . Fastest Speed 50 | 50 160 160 110 Average Speed 135 | 151 160 160 122 Slowest Speed 250 | 250 160 160 160 Overloaded Moves . | . . . . Propulsion Burnouts . | . . . . Robots Hopped . | . . . . Potential Cave-ins . | . . . . Cave-ins Triggered . | . . . . Exploration Rate (%) 21 | 4 23 27 33 Regions Visited 3 Branch Regions 2 Pre-discovered Areas . | . . . . Known Exits Taken . | . . . . Unknown Exits Taken 3 | 1 1 1 . Scrap Searched . | . . . . Spaces Dug . | . . . . Terrain Destroyed 36 | . . . 36 Melee . | . . . . Projectile . | . . . . AOE 36 | . . . 36 Terrain Rammed . | . . . . Walls Destroyed . | . . . . Machines Disabled . | . . . . Actions | -11 -10 -10 -10 --------- Run | Yrd Mat Min Sub Total 729 | 60 84 137 448 Wait 32 | . 1 27 4 Move 565 | 52 69 92 352 Hop . | . . . . Pick Up 14 | 2 3 2 7 Fast Attach 11 | 6 . . 5 Attach 5 | . . 1 4 Detach 1 | . . . 1 Swap 3 | . . . 3 Drop 6 | . . . 6 Fire 82 | . 11 15 56 Melee . | . . . . Ram . | . . . . Kick . | . . . . Crush . | . . . . Escape Stasis . | . . . . Rewire 10 | . . . 10 Trap . | . . . . Miscellaneous . | . . . . Route ------- -11/Scrapyard -10/Materials (discovered 2 exits: [*Min x2]) -10/Mines (discovered 2 exits: [*Mat] / [*Sub]) -10/Subcaves (discovered 2 exits: [*Mat] / [*Scr]) History --------- Turn | Location | Event 17 | -11/Scrapyard | Discovered new exit (range 16) 91 | -11/Scrapyard | Entered Materials 112 | -10/Materials | Discovered new exit (range 16) 224 | -10/Materials | Discovered new exit (range 8) 239 | -10/Materials | Entered Mines 301 | -10/Mines | Build established: Mutant 397 | -10/Mines | Discovered new exit (range 9) 449 | -10/Mines | Discovered new exit (range 4) 457 | -10/Mines | Entered Subcaves 458 | -10/Subcaves | Approached by a straggling Scientist 511 | -10/Subcaves | Shifting Twisted Machinery released Mak. Power Source 513 | -10/Subcaves | Shifting Twisted Machinery released Sub. Power Source 593 | -10/Subcaves | Lost 3 parts (1n2w) 594 | -10/Subcaves | Shifting Twisted Machinery released Barrage Gun 615 | -10/Subcaves | Shifting Twisted Machinery released Sub. Machine Gun 716 | -10/Subcaves | Core integrity fell below 50% 929 | -10/Subcaves | A swath of the cavern ceiling suddenly collapsed 994 | -10/Subcaves | Scientist uncovered a shortcut to Scraptown 1010 | -10/Subcaves | Discovered new exit (range 13) 1047 | -10/Subcaves | A Subdweller sparked back to life 1047 | -10/Subcaves | A Subdweller sparked back to life 1047 | -10/Subcaves | A Subdweller sparked back to life 1051 | -10/Subcaves | Core integrity fell below 20% 1073 | -10/Subcaves | Destroyed by AP-EEE(R) with Subdweller Beam Cannon Last Messages --------------- 01043_ Attempting to rewire AP-EEE(R). 01043_ AP-EEE(R) is broken beyond repair. 01044_ Attempting to rewire AP-EEE(R). 01044_ AP-EEE(R) is broken beyond repair. 01045_ Attempting to rewire AP-EEE(R). 01045_ AP-EEE(R) is broken beyond repair. 01046_ Attempting to rewire AP-EEE(R). 01046_ AP-EEE(R) is broken beyond repair. 01047_ B3-BNO(R) creaks and sparks as it begins to move. 01047_ 4H-0SV(R) creaks and sparks as it begins to move. 01047_ AP-EEE(R) creaks and sparks as it begins to move. 01049_ B3-BNO(R) knocked back. 01054_ Battle Cannon destroyed. 01055_ Sub. Machine Gun destroyed. 01062_ Subatomizers dissect the Ion Engine, destroying it. 01073_ Sub. Power Source destroyed. Map ----- +----------------------------------------------------+ | ?????????????????????????????????????????????????? | | ?????????????????????????????????????????????????? | | ?????????????????????????????????????????????????? | | ?????????????????????????????????????????????????? | | ??????????????????????????????????????????? ???? | | ??????????????????????????????????????????? #??? | | ??????????????????????????????????????????# #??? | | ?????????????????????????????????????????? ??? | | ?????????????????????????????????????????? ??? | | ?????????????????????????????????????????? ??? | | ??????????????????????????????????????????# #??? | | ?????????????????????????????????????????? #??? | | ???????????????????????????????????????#### ???? | | ??????????????????????????????????????## #???? | | ?????????????????????????????????????## # " #???? | | ?????????????????????????????????????# &" "#???? | | ?????????????????????????????????????# % " #???? | | ?????????????????????????????????????# "" #???? | | ?????????????????????????????????????### #???? | | ??????????????????????????????????????## &####???? | | ????????????????????????????????####??# #??????? | | ???????????????????????????????## ##?# #??????? | | ?????????????????????????####### #?## ##?????? | | ???????????????????????### # %### #### #?????? | | ??????????????????????## ## ## ##?????? | | ??????????????????????# @ R ##?????? | | ?????????????????? ### # # R #?????? | | ??????????????????# ###### ##????? | | ???????????????? % ?????#### ##???? | | ?????????????? #???????# < #???? | | ?????????????# ## ??????## #???? | | ?????????????### ?# ?????## #???? | | ???????????????# ??## ?????# ####???? | | ????????????????????# ?????## ## #??????? | | ????????????????????# ##??#### ### #??????? | | ????????????????????# #### ###?## ##??????? | | ????????????????????# ## #??## ! #???????? | | ???????????????????????# #### #???????? | | ????????????????????????# ##???????? | | ????????????????????????# ##????????? | | ????????????????????##### ## ##?????????? | | ?????????????????#### ### #??????????? | | ?????????????????# #? #??????????? | | ?????????????????# #### #??????????? | | ?????????????????## ##?# ??????????? | | ??????????????????#|! > #?# ?????????? | | ???????????????####!! % #?# #????????? | | ???????????????# ####? ##????????? | | ??????????????## % ###???? #?????????? | | #???????####??# % ##??????#%% #?????????? | +----------------------------------------------------+ Best States ------------- Heat Dissipation 39 Energy Generation 15 Energy Capacity 250 Matter Stores 300 Matter Capacity 300 Sight Range 16 Terrain Scan Density 10 Evasion (%) 40 Targeting Accuracy 10 Recoil Reduction 2 Item Schematics ----------------- None Robot Schematics ------------------ None Fabricated ------------ Nothing Repaired ---------- Nothing Studied --------- None Alien Tech Used ----------------- None Achievements -------------- Nice Directions, Buddy Challenges ------------ None Game ------ Seed ThermicServoFlakker Manual? 0 Play Time 00:13:36 Cumulative 35.5 hours Start 2026.04.06 @ 13:48:44 End 2026.04.06 @ 14:03:19 Sessions 1 Manual Loads 0 Difficulty Rogue Special Mode None Game No. 48 Rogue 48 Adventurer 0 Explorer 0 Win Type - Total 1 Types 1/0/0/0/0/0/0/0/0/0 Lore% 34 Gallery% 31 Achievement% 26 Wizard Run 0 Options --------- Layout 1 ASCII 0 Keyboard 0 Movement Vi Keybinds 0 Fullscreen 1 Font 24/Smallcaps Map View 50x40 Zoom Use 0% Tactical HUD 1 Map Filters NONE Filters NONE Steam 1 RUN: d7287b2f-a1e7-4c33-a079-86d954ff0a11